[Event "98th Caplin Hastings Masters 2024-25"]
[Site "Hastings"]
[Date "2024.12.29"]
[Round "3.11"]
[White "Boswell, Jacob Connor"]
[Black "Kovchan, Alexander"]
[Result "0-1"]
[ECO "D73"]
[WhiteElo "2277"]
[BlackElo "2455"]
[Annotator "TA"]
[PlyCount "64"]
[EventDate "2024.12.23"]
[EventType "swiss"]
[EventCountry "ENG"]
[SourceTitle "playchess.com"]
[Source "ChessBase"]
[SourceQuality "1"]
[TimeControl "5400+30"]

{[%evp 10,64,9,10,15,3,20,0,-2,-13,-6,-7,0,-4,23,-24,-12,-16,-19,-56,0,-24,-19,-19,0,-34,-30,-59,-33,-150,-104,-103,-11,-151,-54,-99,-79,-241,-216,-241,-233,-244,-245,-385,-324,-319,-306,-320,-309,-346,-345,-439,-440,-442,-426,-29993,-29994]} 1. d4 {[%emt 0:10:39]} Nf6 {[%emt 0:00:08]} 2. c4 {[%emt 0:00:05]} g6 {[%emt 0:00:06]} 3. Nf3 {[%emt 1:21:16]} Bg7 {[%emt 0:00:10]} 4. g3 {[%emt 0:00:00]} c6 {[%emt 0:00:24]} 5. Bg2 {[%emt 0:00:00]} d5 {[%emt 0:00:05]} 6. O-O {[%emt 0:00:00]} dxc4 {[%emt 0:00:35]} 7. a4 {[%emt 0:00:00]} Ne4 {[%emt 0:00:18]} 8. Nc3 {[%emt 0:00:00][%mdl 1024] White has compensation.} Nd6 {[%emt 0:11:36] The position is equal.} 9. e4 {[%emt 0:00:00]} Bg4 {[%emt 0:00:24]} 10. Be3 {[%emt 0:00:00]} Na6 {[%emt 0:01:42][%cal Bb8a6,Ba6b4,Bb4d3][%mdl 32]} 11. h3 {[%emt 0:00:00]} Bxf3 {[%emt 0:00:29]} 12. Bxf3 {[%emt 0:00:00]} (12. Qxf3 $142 O-O 13. Qe2) 12... O-O $11 {[%emt 0:00:48]} 13. Qe2 {[%emt 0:00:00]} Nb4 {[%emt 0:06:11]} 14. Rfd1 {[%emt 0:00:00]} a5 {[%emt 0:02:18]} ({Black should play} 14... e5 $1 $15) 15. h4 {[%emt 0:00:00]} h5 {[%emt 0:03:41]} 16. Bg2 {[%emt 0:00:00]} Qc7 {[%emt 0:06:07]} 17. f4 {[%emt 0:00:00][%cal Bf2f4,Bf4f5][%mdl 32]} Rad8 {[%emt 0:08:00]} 18. f5 {[%emt 0:00:00]} Nd3 {[%emt 0:01:54] And now ...Qb6 would win.} 19. g4 {[%emt 0:00:00]} ({White should try} 19. b3 $15) 19... hxg4 {[%emt 0:13:20]} (19... Qb6 $142 $1 20. e5 (20. gxh5 $2 Bxd4 21. Bxd4 Qxd4+ 22. Kf1 gxf5 $19) 20... gxf5 21. gxh5 (21. exd6 exd6 22. d5 Qxb2 $17) 21... f4 (21... Qxb2 22. Qxb2 Nxb2 23. Rf1 $14)) 20. Qxg4 $17 {[%emt 0:00:00]} Qd7 {[%emt 0:05:44]} (20... Nxb2 $6 21. Rf1 $15) (20... Qb6 $1 $17 21. Ne2 (21. fxg6 $2 e5 $19) 21... Qb3 (21... Nxb2 22. Rf1 $15) (21... Qxb2 22. fxg6 fxg6 23. h5 $15)) 21. Bh3 {[%emt 0:00:00] [#]} (21. Rf1 $11 {was the only way to keep the balance.}) 21... Ne8 {[%emt 0:02:10] Black is more active. A dynamic duo of knights.} (21... Nxb2 22. Rd2 Nd3 (22... gxf5 23. Qh5 $18) 23. Qf3 Bxd4 24. Bxd4 Nxe4 25. Qxe4) (21... e5 $1 $17 {[%cal Re5d4]} 22. dxe5 Nxe5 (22... Bxe5 23. h5 $17)) 22. e5 {[%emt 0:00:00]} Qxf5 {[%emt 0:03:28]} 23. Qg3 {[%emt 0:00:00] Loses the game.} (23. Qxf5 $17 gxf5 24. Bxf5) 23... Qh5 $19 {[%emt 0:00:39] Hoping for ...c5.} 24. Bg4 {[%emt 0:04:55]} Qh8 {[%emt 0:00:03] aiming for ...c5.} 25. h5 {[%emt 0:00:33] [#]} Bh6 $1 {[%emt 0:07:08][%cal Bg7h6,Bh6d2,Bd2f4][%mdl 32] Strongly threatening ...Ng7.} ({Inferior is} 25... Nxb2 26. Rd2 (26. Rf1 gxh5 27. Bf5 Nd3 $11) 26... Bxe5 (26... f5 $2 27. exf6 Rxf6 28. Ne4 $18) 27. Qxe5 (27. dxe5 Rxd2 28. Bxd2 Nd3 $16) 27... Qxe5 28. dxe5 $14) 26. Rd2 {[%emt 0:02:24] [#]} (26. b3 {is a better defense.}) 26... Nxe5 $1 {[%emt 0:03:00][%mdl 512]} 27. dxe5 {[%emt 0:03:09]} Rxd2 {[%emt 0:00:16]} 28. Bxd2 {[%emt 0:00:38]} Bxd2 {[%emt 0:00:08]} 29. hxg6 {[%emt 0:00:11]} fxg6 {[%emt 0:01:03]} 30. Kg2 {[%emt 0:01:04]} Bf4 {[%emt 0:01:04]} 31. Be6+ {[%emt 0:00:35]} Kg7 {[%emt 0:00:17]} 32. Qg4 {[%emt 0:00:22]} (32. Qh3 $19) 32... Qh2+ {[%emt 0:00:14] Weighted Error Value: White=0.65/Black=0.22 (precise) .  Loses game:     	White=1     	---        Mistake:       	White=5     	Black=4      Inaccurate:     	White=4     	Black=2      OK:         	White=6     	Black=8      Best:        	---       	Black=4      Strong:       	---       	Black=1} 0-1

[Event "98th Caplin Hastings Masters 2024-25"]
[Site "Hastings"]
[Date "2024.12.29"]
[Round "3.12"]
[White "Adams, Henry"]
[Black "Briem, Benedikt"]
[Result "1/2-1/2"]
[ECO "D02"]
[WhiteElo "1991"]
[BlackElo "2132"]
[Annotator "RC"]
[PlyCount "106"]
[EventDate "2024.12.23"]
[EventType "swiss"]
[EventCountry "ENG"]
[SourceTitle "playchess.com"]
[Source "ChessBase"]
[SourceQuality "1"]
[TimeControl "5400+30"]

1. d4 {[%emt 0:00:18]} d5 {[%emt 0:00:09]} 2. Nf3 {[%emt 0:00:07]} Nf6 {[%emt 0:00:08]} 3. g3 {[%emt 0:00:05]} e6 {[%emt 0:00:30]} 4. Bg2 {[%emt 0:00:05]} Bd6 {[%emt 0:00:34]} 5. O-O {[%emt 0:00:21]} O-O {[%emt 0:00:18]} 6. c4 {[%emt 0:00:36]} h6 {[%emt 0:00:05]} 7. Nc3 {[%emt 0:06:21]} Nc6 {[%emt 0:00:16]} 8. c5 {[%emt 0:02:56]} Be7 {[%emt 0:00:05]} 9. Rb1 {[%emt 0:03:45]} a5 {[%emt 0:00:22]} 10. a3 {[%emt 0:01:46]} b6 {[%emt 0:00:31]} 11. b4 {[%emt 0:00:53]} axb4 {[%emt 0:00:05]} 12. axb4 {[%emt 0:00:05]} bxc5 {[%emt 0:00:05]} 13. bxc5 {[%emt 0:02:11]} Ba6 {[%emt 0:01:03]} 14. Re1 {[%emt 0:02:02]} Ne4 {[%emt 0:02:04]} 15. Qc2 {[%emt 0:09:27]} Nxc3 {[%emt 0:06:42]} 16. Qxc3 {[%emt 0:00:16]} Rb8 {[%emt 0:01:47]} 17. Ra1 {[%emt 0:02:57]} Bb5 {[%emt 0:01:16]} 18. h4 {[%emt 0:11:45]} Bf6 {[%emt 0:02:21]} 19. h5 {[%emt 0:05:44]} Re8 {[%emt 0:02:10]} 20. Bf4 {[%emt 0:16:13]} e5 {[%emt 0:06:59]} 21. dxe5 {[%emt 0:01:30]} d4 {[%emt 0:01:53]} 22. Qc2 {[%emt 0:05:53]} Nxe5 {[%emt 0:01:24]} 23. Rad1 {[%emt 0:01:39]} Nxf3+ {[%emt 0:02:57]} 24. Bxf3 {[%emt 0:00:08]} Be5 {[%emt 0:02:49]} 25. Qf5 {[%emt 0:01:22]} Bd7 {[%emt 0:10:25]} 26. Qe4 {[%emt 0:03:09]} Bf6 {[%emt 0:00:28]} 27. Qd5 {[%emt 0:01:11]} c6 {[%emt 0:04:34]} 28. Qd6 {[%emt 0:01:34]} Rc8 {[%emt 0:02:29]} 29. Rxd4 {[%emt 0:03:42]} Bxd4 {[%emt 0:00:34]} 30. Qxd4 {[%emt 0:00:02]} Be6 {[%emt 0:00:19]} 31. Bd6 {[%emt 0:00:43]} Qd7 {[%emt 0:04:08]} 32. Rb1 {[%emt 0:01:33]} Ra8 {[%emt 0:00:44]} 33. Rb6 {[%emt 0:01:05]} Rec8 {[%emt 0:00:18]} 34. Kg2 {[%emt 0:02:46]} Ra2 {[%emt 0:02:43]} 35. e3 {[%emt 0:05:19]} Bh3+ {[%emt 0:09:14]} 36. Kg1 {[%emt 0:00:39]} Bf5 {[%emt 0:02:33]} 37. Qc4 {[%emt 0:02:01]} Ra1+ {[%emt 0:03:37]} 38. Kg2 {[%emt 0:00:14]} Bh3+ {[%emt 0:01:19]} 39. Kh2 {[%emt 0:00:12]} Be6 {[%emt 0:01:16]} 40. Qd4 {[%emt 0:07:55]} Rc1 {[%emt 0:29:16]} 41. Qb2 {[%emt 0:00:00]} Rc4 {[%emt 0:00:00]} 42. Rb7 {[%emt 0:00:00]} Qd8 {[%emt 0:00:00]} 43. Re7 {[%emt 0:00:00]} Qa5 {[%emt 0:00:00]} 44. Qe5 {[%emt 0:00:00]} Rc2 {[%emt 0:00:00]} 45. Rxe6 {[%emt 0:00:00]} Rxf2+ {[%emt 0:00:00]} 46. Kh3 {[%emt 0:00:00]} Qd8 {[%emt 0:00:00]} 47. Bg4 {[%emt 0:00:00]} fxe6 {[%emt 0:00:00]} 48. Qxe6+ {[%emt 0:00:04]} Kh7 {[%emt 0:00:00]} 49. Qxc8 {[%emt 0:00:19]} Qf6 {[%emt 0:00:00]} 50. e4 {[%emt 0:00:52]} Rh2+ {[%emt 0:00:00]} 51. Kxh2 {[%emt 0:00:01]} Qf2+ {[%emt 0:00:00]} 52. Kh3 {[%emt 0:00:11]} Qf1+ {[%emt 0:00:00]} 53. Kh4 {[%emt 0:00:39]} Qf6+ {[%emt 0:00:00]} 1/2-1/2

[Event "98th Caplin Hastings Masters 2024-25"]
[Site "Hastings"]
[Date "2024.12.29"]
[Round "3.13"]
[White "Cheng, Louis"]
[Black "Zhu, Yaoyao"]
[Result "1-0"]
[ECO "C54"]
[WhiteElo "2087"]
[BlackElo "1990"]
[Annotator "NA RC"]
[PlyCount "47"]
[EventDate "2024.12.23"]
[EventType "swiss"]
[EventCountry "ENG"]
[SourceTitle "playchess.com"]
[Source "ChessBase"]
[SourceQuality "1"]
[TimeControl "5400+30"]

1. e4 {[%emt 0:00:02]} e5 {[%emt 0:00:17]} 2. Nf3 {[%emt 0:00:04]} Nc6 {[%emt 0:00:04]} 3. Bc4 {[%emt 0:00:05]} Nf6 {[%emt 0:00:07]} 4. d3 {[%emt 0:00:05]} Bc5 {[%emt 0:00:07]} 5. c3 {[%emt 0:00:05]} d6 {[%emt 0:00:07]} 6. O-O {[%emt 0:00:05]} a5 {[%emt 0:00:06]} 7. Re1 {[%emt 0:02:51]} Ba7 {[%emt 0:01:16]} 8. Be3 {[%emt 0:02:12]} Bxe3 {[%emt 0:01:44]} 9. Rxe3 {[%emt 0:00:06]} O-O {[%emt 0:00:18]} 10. Nbd2 {[%emt 0:08:14]} Ne7 {[%emt 0:19:29]} 11. d4 {[%emt 0:02:27]} exd4 {[%emt 0:01:16]} 12. cxd4 {[%emt 0:00:37]} d5 {[%emt 0:00:50]} 13. Bd3 {[%emt 0:02:37]} dxe4 {[%emt 0:00:17]} 14. Nxe4 {[%emt 0:00:10]} Ned5 {[%emt 0:03:19]} 15. Nxf6+ {[%emt 0:05:18]} Nxf6 {[%emt 0:10:06]} 16. Ne5 {[%emt 0:02:30]} Be6 {[%emt 0:00:25]} 17. Rg3 {[%emt 0:02:43]} Kh8 {[%emt 0:03:04]} 18. Bc2 {[%emt 0:04:49]} Ra6 {[%emt 0:03:00]} 19. Qd2 {[%emt 0:03:48]} Rd6 {[%emt 0:09:10]} 20. Rd1 {[%emt 0:03:19]} c5 {[%emt 0:07:43]} 21. Qg5 {[%emt 0:00:28]} Rg8 {[%emt 0:09:00]} 22. Rh3 {[%emt 0:02:17]} Rxd4 {[%emt 0:06:12]} 23. Rxd4 {[%emt 0:00:31]} Qxd4 {[%emt 0:00:29]} 24. Qg6 {[%emt 0:57:07]} 1-0

[Event "98th Caplin Hastings Masters 2024-25"]
[Site "Hastings"]
[Date "2024.12.29"]
[Round "3.14"]
[White "Gu In-Jung"]
[Black "Badacsonyi, Frankie"]
[Result "0-1"]
[ECO "B31"]
[WhiteElo "1987"]
[BlackElo "2218"]
[Annotator "RC"]
[PlyCount "110"]
[EventDate "2024.12.23"]
[EventType "swiss"]
[EventCountry "ENG"]
[SourceTitle "playchess.com"]
[Source "ChessBase"]
[SourceQuality "1"]
[TimeControl "5400+30"]

1. e4 {[%emt 0:00:39]} c5 {[%emt 0:00:44]} 2. Nf3 {[%emt 0:00:06]} Nc6 {[%emt 0:00:24]} 3. Bb5 {[%emt 0:00:26]} g6 {[%emt 0:00:50]} 4. O-O {[%emt 0:00:32]} Bg7 {[%emt 0:00:06]} 5. c3 {[%emt 0:00:09]} e5 {[%emt 0:00:42]} 6. Na3 {[%emt 0:06:49]} Nge7 {[%emt 0:01:37]} 7. Re1 {[%emt 0:07:46]} O-O {[%emt 0:01:29]} 8. Nc2 {[%emt 0:13:49]} Qb6 {[%emt 0:09:19]} 9. Bc4 {[%emt 0:03:28]} d6 {[%emt 0:00:55]} 10. d3 {[%emt 0:01:13]} h6 {[%emt 0:02:17]} 11. Rb1 {[%emt 0:01:43]} Qc7 {[%emt 0:11:43]} 12. b4 {[%emt 0:02:31]} b6 {[%emt 0:01:11]} 13. Ne3 {[%emt 0:01:31]} Kh8 {[%emt 0:02:09]} 14. Nd5 {[%emt 0:01:47]} Nxd5 {[%emt 0:00:24]} 15. Bxd5 {[%emt 0:00:06]} Rb8 {[%emt 0:05:11]} 16. d4 {[%emt 0:08:23]} exd4 {[%emt 0:09:53]} 17. Bxc6 {[%emt 0:02:15]} Qxc6 {[%emt 0:00:10]} 18. cxd4 {[%emt 0:00:20]} cxb4 {[%emt 0:02:43]} 19. Rxb4 {[%emt 0:00:58]} Re8 {[%emt 0:05:02]} 20. d5 {[%emt 0:05:29]} Qc5 {[%emt 0:03:40]} 21. Qb3 {[%emt 0:08:15]} Qc7 {[%emt 0:14:12]} 22. Bb2 {[%emt 0:03:27]} Bb7 {[%emt 0:02:06]} 23. Bxg7+ {[%emt 0:21:19]} Kxg7 {[%emt 0:00:19]} 24. Qb2+ {[%emt 0:00:34]} Kh7 {[%emt 0:00:33]} 25. Rc1 {[%emt 0:00:10]} Qe7 {[%emt 0:01:30]} 26. Ra4 {[%emt 0:02:09]} Ra8 {[%emt 0:00:44]} 27. Rac4 {[%emt 0:02:05]} Rac8 {[%emt 0:00:39]} 28. h3 {[%emt 0:00:58]} Rc5 {[%emt 0:01:58]} 29. Rxc5 {[%emt 0:00:47]} bxc5 {[%emt 0:00:08]} 30. Qb5 {[%emt 0:01:08]} Ba8 {[%emt 0:06:35]} 31. Rc4 {[%emt 0:02:16]} Rc8 {[%emt 0:01:11]} 32. Ra4 {[%emt 0:01:22]} f5 {[%emt 0:02:49]} 33. exf5 {[%emt 0:00:05]} gxf5 {[%emt 0:00:03]} 34. Qd3 {[%emt 0:00:49]} Rf8 {[%emt 0:00:44]} 35. Nh4 {[%emt 0:01:57]} Qf7 {[%emt 0:10:27]} 36. Ra6 {[%emt 0:00:23]} Qxd5 {[%emt 0:04:03]} 37. Qg3 {[%emt 0:00:41]} Rg8 {[%emt 0:00:00]} 38. Rxa7+ {[%emt 0:00:25]} Bb7 {[%emt 0:00:00]} 39. Qb3 {[%emt 0:00:28]} Rxg2+ {[%emt 0:00:00]} 40. Kf1 {[%emt 0:00:09]} Rg1+ {[%emt 0:00:02]} 41. Ke2 {[%emt 0:00:10]} Qxb3 {[%emt 0:01:23]} 42. axb3 {[%emt 0:00:07]} Rg7 {[%emt 0:00:01]} 43. Ke3 {[%emt 0:00:53]} Be4 {[%emt 0:00:10]} 44. Ra6 {[%emt 0:00:42]} d5 {[%emt 0:00:59]} 45. Kf4 {[%emt 0:00:57]} Rc7 {[%emt 0:00:48]} 46. f3 {[%emt 0:00:30]} Bc2 {[%emt 0:00:01]} 47. Ke5 {[%emt 0:00:33]} c4 {[%emt 0:00:46]} 48. bxc4 {[%emt 0:00:24]} dxc4 {[%emt 0:00:01]} 49. Nxf5 {[%emt 0:00:29]} Rc5+ {[%emt 0:00:03]} 50. Kd4 {[%emt 0:00:18]} Rxf5 {[%emt 0:00:05]} 51. Kxc4 {[%emt 0:00:12]} Rxf3 {[%emt 0:00:06]} 52. Kd4 {[%emt 0:00:17]} Rxh3 {[%emt 0:00:19]} 53. Ke5 {[%emt 0:00:03]} Rf3 {[%emt 0:00:21]} 54. Rc6 {[%emt 0:00:16]} Bg6 {[%emt 0:00:15]} 55. Ke6 {[%emt 0:00:42]} h5 {[%emt 0:00:07]} 0-1

[Event "98th Caplin Hastings Masters 2024-25"]
[Site "Hastings"]
[Date "2024.12.29"]
[Round "3.15"]
[White "Mikalajunas, Kajus"]
[Black "Abrahams, Daniel"]
[Result "0-1"]
[ECO "E08"]
[WhiteElo "1941"]
[BlackElo "2072"]
[Annotator "RC"]
[PlyCount "120"]
[EventDate "2024.12.23"]
[EventType "swiss"]
[EventCountry "ENG"]
[SourceTitle "playchess.com"]
[Source "ChessBase"]
[SourceQuality "1"]
[TimeControl "5400+30"]

1. Nf3 {[%emt 0:00:03]} e6 {[%emt 0:00:05]} 2. g3 {[%emt 0:00:14]} Nf6 {[%emt 0:00:12]} 3. Bg2 {[%emt 0:00:07]} d5 {[%emt 0:00:05]} 4. d4 {[%emt 0:00:12]} Be7 {[%emt 0:00:07]} 5. O-O {[%emt 0:00:10]} O-O {[%emt 0:00:04]} 6. c4 {[%emt 0:00:07]} c6 {[%emt 0:00:08]} 7. Qc2 {[%emt 0:00:07]} b6 {[%emt 0:00:07]} 8. Rd1 {[%emt 0:00:09]} Nbd7 {[%emt 0:00:13]} 9. b3 {[%emt 0:00:35]} Bb7 {[%emt 0:00:11]} 10. Nc3 {[%emt 0:00:16]} Qc8 {[%emt 0:00:28]} 11. e4 {[%emt 0:11:41]} dxe4 {[%emt 0:01:02]} 12. Ng5 {[%emt 0:05:28]} h6 {[%emt 0:03:48]} 13. Ngxe4 {[%emt 0:00:29]} Rd8 {[%emt 0:00:21]} 14. Bb2 {[%emt 0:06:53]} Qc7 {[%emt 0:02:18]} 15. Rac1 {[%emt 0:02:30]} Rac8 {[%emt 0:00:27]} 16. Qe2 {[%emt 0:02:37]} Re8 {[%emt 0:03:43]} 17. d5 {[%emt 0:11:51]} exd5 {[%emt 0:02:26]} 18. cxd5 {[%emt 0:00:37]} Qb8 {[%emt 0:01:29]} 19. d6 {[%emt 0:08:13]} Bf8 {[%emt 0:00:10]} 20. Qf3 {[%emt 0:03:08]} Rcd8 {[%emt 0:00:39]} 21. h4 {[%emt 0:05:37]} Nxe4 {[%emt 0:04:04]} 22. Nxe4 {[%emt 0:00:20]} c5 {[%emt 0:00:15]} 23. Qf5 {[%emt 0:04:31]} Re6 {[%emt 0:02:46]} 24. Re1 {[%emt 0:02:44]} Rde8 {[%emt 0:03:18]} 25. Re3 {[%emt 0:00:33]} g6 {[%emt 0:04:17]} 26. Qf4 {[%emt 0:01:37]} Bxe4 {[%emt 0:00:15]} 27. Bxe4 {[%emt 0:02:46]} Qxd6 {[%emt 0:00:20]} 28. Qf3 {[%emt 0:01:33]} Nf6 {[%emt 0:11:14]} 29. Rd1 {[%emt 0:02:26]} Qe7 {[%emt 0:00:18]} 30. Bc6 {[%emt 0:02:07]} Rc8 {[%emt 0:01:13]} 31. Rxe6 {[%emt 0:01:18]} Qxe6 {[%emt 0:00:23]} 32. Bb7 {[%emt 0:00:26]} Nh5 {[%emt 0:01:07]} 33. Bxc8 {[%emt 0:02:00]} Qxc8 {[%emt 0:00:04]} 34. Rd5 {[%emt 0:00:46]} Bg7 {[%emt 0:03:22]} 35. g4 {[%emt 0:02:06]} Bxb2 {[%emt 0:01:05]} 36. gxh5 {[%emt 0:00:18]} Qe6 {[%emt 0:00:35]} 37. hxg6 {[%emt 0:00:51]} fxg6 {[%emt 0:00:13]} 38. Qd3 {[%emt 0:01:33]} Bd4 {[%emt 0:00:51]} 39. Qf3 {[%emt 0:01:11]} Kh7 {[%emt 0:02:00]} 40. h5 {[%emt 0:00:53]} gxh5 {[%emt 0:00:21]} 41. Qf5+ {[%emt 0:01:03]} Qxf5 {[%emt 0:00:08]} 42. Rxf5 {[%emt 0:00:03]} Kg6 {[%emt 0:00:12]} 43. Rd5 {[%emt 0:00:21]} h4 {[%emt 0:00:20]} 44. Rd7 {[%emt 0:00:17]} b5 {[%emt 0:02:05]} 45. a4 {[%emt 0:20:13]} bxa4 {[%emt 0:00:19]} 46. bxa4 {[%emt 0:00:00]} a5 {[%emt 0:00:15]} 47. Ra7 {[%emt 0:00:00]} Bc3 {[%emt 0:00:12]} 48. Kg2 {[%emt 0:00:00]} Kf5 {[%emt 0:00:34]} 49. Kh3 {[%emt 0:00:00]} Kg5 {[%emt 0:00:45]} 50. Ra8 {[%emt 0:00:00]} Bd2 {[%emt 0:00:30]} 51. Rc8 {[%emt 0:00:00]} Bb4 {[%emt 0:00:10]} 52. Rc6 {[%emt 0:00:00]} Kf4 {[%emt 0:02:09]} 53. Rxh6 {[%emt 0:00:00]} Ke4 {[%emt 0:02:46]} 54. Kg2 {[%emt 0:00:00]} c4 {[%emt 0:00:14]} 55. Kf1 {[%emt 0:00:00]} Kd3 {[%emt 0:00:12]} 56. Rh7 {[%emt 0:00:00]} c3 {[%emt 0:00:21]} 57. Rd7+ {[%emt 0:00:00]} Kc2 {[%emt 0:00:13]} 58. Ke2 {[%emt 0:00:00]} Kb2 {[%emt 0:00:09]} 59. Kd3 {[%emt 0:00:33]} c2 {[%emt 0:00:20]} 60. Rc7 {[%emt 0:00:17]} c1=Q {[%emt 0:00:11]} 0-1

[Event "98th Caplin Hastings Masters 2024-25"]
[Site "Hastings"]
[Date "2024.12.29"]
[Round "3.16"]
[White "Saunders, Aron"]
[Black "Hu, Junyan"]
[Result "1-0"]
[ECO "B40"]
[WhiteElo "2106"]
[BlackElo "1933"]
[Annotator "RC"]
[PlyCount "115"]
[EventDate "2024.12.23"]
[EventType "swiss"]
[EventCountry "ENG"]
[SourceTitle "playchess.com"]
[Source "ChessBase"]
[SourceQuality "1"]
[TimeControl "5400+30"]

1. e4 {[%emt 0:00:03]} c5 {[%emt 0:00:06]} 2. Nf3 {[%emt 0:00:04]} e6 {[%emt 0:00:11]} 3. b3 {[%emt 0:00:07]} Nc6 {[%emt 0:00:04]} 4. Bb2 {[%emt 0:00:07]} a6 {[%emt 0:00:56]} 5. c4 {[%emt 0:00:41]} Qc7 {[%emt 0:00:21]} 6. g3 {[%emt 0:02:33]} Nf6 {[%emt 0:03:20]} 7. Qe2 {[%emt 0:03:14]} Be7 {[%emt 0:00:23]} 8. Bg2 {[%emt 0:02:10]} O-O {[%emt 0:01:27]} 9. O-O {[%emt 0:02:54]} b6 {[%emt 0:03:53]} 10. e5 {[%emt 0:05:25]} Ng4 {[%emt 0:00:16]} 11. h3 {[%emt 0:00:36]} Nh6 {[%emt 0:00:19]} 12. d4 {[%emt 0:00:26]} cxd4 {[%emt 0:00:37]} 13. Nxd4 {[%emt 0:00:06]} Bb7 {[%emt 0:00:12]} 14. Nd2 {[%emt 0:04:35]} Nxd4 {[%emt 0:01:22]} 15. Bxd4 {[%emt 0:00:07]} Nf5 {[%emt 0:00:08]} 16. Bb2 {[%emt 0:00:55]} Bc5 {[%emt 0:01:02]} 17. Qd3 {[%emt 0:05:44]} Bxg2 {[%emt 0:02:13]} 18. Kxg2 {[%emt 0:00:06]} Rfd8 {[%emt 0:00:25]} 19. Ne4 {[%emt 0:04:03]} Bf8 {[%emt 0:02:26]} 20. Rad1 {[%emt 0:05:55]} Qc6 {[%emt 0:01:47]} 21. Qf3 {[%emt 0:03:32]} Rac8 {[%emt 0:02:47]} 22. Rd3 {[%emt 0:02:07]} Rc7 {[%emt 0:12:33]} 23. Rfd1 {[%emt 0:02:36]} Qb7 {[%emt 0:00:44]} 24. Bc1 {[%emt 0:06:51]} b5 {[%emt 0:01:10]} 25. Bg5 {[%emt 0:04:11]} Rdc8 {[%emt 0:01:43]} 26. cxb5 {[%emt 0:01:38]} Qxb5 {[%emt 0:01:04]} 27. g4 {[%emt 0:01:15]} Nh6 {[%emt 0:03:41]} 28. Bxh6 {[%emt 0:01:42]} gxh6 {[%emt 0:01:12]} 29. Nf6+ {[%emt 0:00:56]} Kg7 {[%emt 0:02:04]} 30. Rxd7 {[%emt 0:08:58]} Qc6 {[%emt 0:00:27]} 31. Rxc7 {[%emt 0:04:04]} Rxc7 {[%emt 0:00:55]} 32. Rd4 {[%emt 0:05:18]} Qxf3+ {[%emt 0:00:57]} 33. Kxf3 {[%emt 0:00:02]} Rc3+ {[%emt 0:00:01]} 34. Ke2 {[%emt 0:01:28]} Rc2+ {[%emt 0:01:57]} 35. Rd2 {[%emt 0:00:13]} Rc3 {[%emt 0:00:12]} 36. f3 {[%emt 0:01:19]} Be7 {[%emt 0:01:24]} 37. Ne4 {[%emt 0:00:17]} Rc6 {[%emt 0:00:11]} 38. Kd3 {[%emt 0:02:23]} Rc7 {[%emt 0:02:33]} 39. Ke3 {[%emt 0:00:25]} Kg6 {[%emt 0:00:48]} 40. f4 {[%emt 0:00:44]} Rc1 {[%emt 0:01:04]} 41. Rd7 {[%emt 0:02:17]} Re1+ {[%emt 0:00:39]} 42. Kf3 {[%emt 0:00:02]} Bh4 {[%emt 0:00:20]} 43. Nd6 {[%emt 0:02:50]} Rf1+ {[%emt 0:01:00]} 44. Ke4 {[%emt 0:00:10]} Re1+ {[%emt 0:00:39]} 45. Kd3 {[%emt 0:00:15]} Rh1 {[%emt 0:00:54]} 46. Ke4 {[%emt 0:01:54]} Re1+ {[%emt 0:01:18]} 47. Kf3 {[%emt 0:00:11]} Rf1+ {[%emt 0:00:26]} 48. Ke3 {[%emt 0:00:03]} Rh1 {[%emt 0:01:01]} 49. Nxf7 {[%emt 0:01:20]} Rxh3+ {[%emt 0:00:33]} 50. Ke4 {[%emt 0:00:12]} h5 {[%emt 0:00:06]} 51. f5+ {[%emt 0:00:59]} exf5+ {[%emt 0:00:21]} 52. gxf5+ {[%emt 0:00:06]} Kg7 {[%emt 0:00:06]} 53. Ng5+ {[%emt 0:00:07]} Kh8 {[%emt 0:00:05]} 54. Nxh3 {[%emt 0:00:06]} Bg5 {[%emt 0:00:07]} 55. Nxg5 {[%emt 0:00:09]} h6 {[%emt 0:00:04]} 56. Nh7 {[%emt 0:00:05]} h4 {[%emt 0:00:05]} 57. Nf6 {[%emt 0:00:03]} h3 {[%emt 0:00:07]} 58. Rh7# {[%emt 0:00:58]} 1-0

[Event "98th Caplin Hastings Masters 2024-25"]
[Site "Hastings"]
[Date "2024.12.29"]
[Round "3.17"]
[White "Pick, Freddie"]
[Black "Marusenko, Petr"]
[Result "1-0"]
[ECO "B11"]
[WhiteElo "1874"]
[BlackElo "2021"]
[Annotator "RC"]
[PlyCount "85"]
[EventDate "2024.12.23"]
[EventType "swiss"]
[EventCountry "ENG"]
[SourceTitle "playchess.com"]
[Source "ChessBase"]
[SourceQuality "1"]
[TimeControl "5400+30"]

1. e4 {[%emt 0:00:02]} c6 {[%emt 0:01:35]} 2. Nc3 {[%emt 0:00:09]} d5 {[%emt 0:00:04]} 3. Nf3 {[%emt 0:00:07]} Bg4 {[%emt 0:00:04]} 4. h3 {[%emt 0:00:04]} Bh5 {[%emt 0:00:03]} 5. exd5 {[%emt 0:00:12]} cxd5 {[%emt 0:00:04]} 6. g4 {[%emt 0:00:05]} Bg6 {[%emt 0:00:05]} 7. Ne5 {[%emt 0:00:04]} Nc6 {[%emt 0:00:07]} 8. d4 {[%emt 0:00:02]} e6 {[%emt 0:00:16]} 9. h4 {[%emt 0:00:07]} f6 {[%emt 0:00:33]} 10. Nxc6 {[%emt 0:00:12]} bxc6 {[%emt 0:00:07]} 11. h5 {[%emt 0:00:02]} Bf7 {[%emt 0:00:02]} 12. Bf4 {[%emt 0:00:08]} Bd6 {[%emt 0:00:11]} 13. Bxd6 {[%emt 0:00:20]} Qxd6 {[%emt 0:00:06]} 14. Qd2 {[%emt 0:01:19]} Ne7 {[%emt 1:34:13]} 15. O-O-O {[%emt 0:00:34]} O-O {[%emt 0:00:00]} 16. h6 {[%emt 0:00:24]} g5 {[%emt 0:00:00]} 17. Bd3 {[%emt 0:05:33]} Ng6 {[%emt 0:00:00]} 18. Ne2 {[%emt 0:01:09]} c5 {[%emt 0:00:00]} 19. dxc5 {[%emt 0:01:46]} Qxc5 {[%emt 0:00:00]} 20. f4 {[%emt 0:01:43]} gxf4 {[%emt 0:00:00]} 21. Nxf4 {[%emt 0:00:27]} Ne5 {[%emt 0:00:00]} 22. Rh3 {[%emt 0:07:25]} Rab8 {[%emt 0:00:00]} 23. g5 {[%emt 0:04:11]} Qb4 {[%emt 0:00:00]} 24. c3 {[%emt 0:02:06]} Qa4 {[%emt 0:00:00]} 25. Kb1 {[%emt 0:07:33]} Nxd3 {[%emt 0:00:00]} 26. Nxd3 {[%emt 0:04:44]} Qg4 {[%emt 0:00:00]} 27. Rhh1 {[%emt 0:01:21]} Bg6 {[%emt 0:00:00]} 28. gxf6 {[%emt 0:03:12]} Rxf6 {[%emt 0:00:00]} 29. Ka1 {[%emt 0:01:38]} Qg3 {[%emt 0:00:00]} 30. Rhg1 {[%emt 0:01:32]} Qd6 {[%emt 0:00:00]} 31. Rde1 {[%emt 0:04:55]} Qb6 {[%emt 0:00:00]} 32. Ne5 {[%emt 0:04:39]} Rf2 {[%emt 0:00:00]} 33. Nxg6 {[%emt 0:03:05]} hxg6 {[%emt 0:00:00]} 34. Re2 {[%emt 0:09:55]} Rbf8 {[%emt 0:00:00]} 35. Rxg6+ {[%emt 0:05:20]} Kh8 {[%emt 0:00:00]} 36. a3 {[%emt 0:03:35]} R2f6 {[%emt 0:00:00]} 37. Rxf6 {[%emt 0:04:15]} Rxf6 {[%emt 0:00:00]} 38. Qg5 {[%emt 0:01:37]} Rf1+ {[%emt 0:00:00]} 39. Ka2 {[%emt 0:00:07]} Qc7 {[%emt 0:00:00]} 40. Qg7+ {[%emt 0:00:57]} Qxg7 {[%emt 0:13:00]} 41. hxg7+ {[%emt 0:24:24]} Kxg7 {[%emt 0:00:00]} 42. Rxe6 {[%emt 0:00:00]} Rf7 {[%emt 0:01:00]} 43. Rd6 {[%emt 0:00:00]} 1-0